{"text_format":"3","workbook":"xlsx","n_sheets":1,"sheets":["Предложение"],"not_rendered":{"images":1,"defined_names":20},"read":"whole","date_system":"1900"}

{"sheet":"Предложение","index":0,"n_rows":39,"n_cols":7,"rows_kept":39,"merged":[[0,1,3,1],[0,3,0,6],[1,4,1,6],[2,4,2,6],[32,3,35,4],[36,3,36,6],[37,3,37,5],[38,3,38,5]]}
[{"$nulls":3},"ПРЕДЛОЖЕНИЕ ПО СТРОИТЕЛЬСТВУ"]
[{"$nulls":3},"Название компании","| Введите почтовый адрес компании в этой ячейке."]
[{"$nulls":3},"Телефон","| Введите номер факса компании и контактный адрес электронной почты в этой ячейке."]
[{"$nulls":3},"КОЛИЧЕСТВО","ОПИСАНИЕ","ЦЕНА ЗА ЕДИНИЦУ","СУММА"]
[null,"КЛИЕНТ",null,10,"Позиция 1",{"v":165,"d":"165.00 ₽"},{"$f":"IFERROR(Позиции[[#This Row],[КОЛИЧЕСТВО]]*Позиции[[#This Row],[ЦЕНА ЗА ЕДИНИЦУ]], \"\")","v":{"v":1650,"d":"1,650.00 ₽"}}]
[null,"Введите имя клиента в этой ячейке.",null,21,"Позиция 2",{"v":40,"d":"40.00 ₽"},{"$f":"IFERROR(Позиции[[#This Row],[КОЛИЧЕСТВО]]*Позиции[[#This Row],[ЦЕНА ЗА ЕДИНИЦУ]], \"\")","v":{"v":840,"d":"840.00 ₽"}}]
[null,"НОМЕР СМЕТЫ",null,5,"Позиция 3",{"v":10.5,"d":"10.50 ₽"},{"$f":"IFERROR(Позиции[[#This Row],[КОЛИЧЕСТВО]]*Позиции[[#This Row],[ЦЕНА ЗА ЕДИНИЦУ]], \"\")","v":{"v":52.5,"d":"52.50 ₽"}}]
[null,"С-1234",null,164,"Позиция 4",{"v":2.75,"d":"2.75 ₽"},{"$f":"IFERROR(Позиции[[#This Row],[КОЛИЧЕСТВО]]*Позиции[[#This Row],[ЦЕНА ЗА ЕДИНИЦУ]], \"\")","v":{"v":451,"d":"451.00 ₽"}}]
[null,"ДАТА",null,6,"Позиция 5",{"v":12,"d":"12.00 ₽"},{"$f":"IFERROR(Позиции[[#This Row],[КОЛИЧЕСТВО]]*Позиции[[#This Row],[ЦЕНА ЗА ЕДИНИЦУ]], \"\")","v":{"v":72,"d":"72.00 ₽"}}]
[null,{"$f":"TODAY()","v":"2018-11-19"},null,18,"Позиция 6",{"v":5.5,"d":"5.50 ₽"},{"$f":"IFERROR(Позиции[[#This Row],[КОЛИЧЕСТВО]]*Позиции[[#This Row],[ЦЕНА ЗА ЕДИНИЦУ]], \"\")","v":{"v":99,"d":"99.00 ₽"}}]
[null,"АДРЕС",null,1,"Позиция 7",{"v":25,"d":"25.00 ₽"},{"$f":"IFERROR(Позиции[[#This Row],[КОЛИЧЕСТВО]]*Позиции[[#This Row],[ЦЕНА ЗА ЕДИНИЦУ]], \"\")","v":{"v":25,"d":"25.00 ₽"}}]
[null,"Введите почтовый адрес клиента в этой ячейке.",{"$nulls":4},{"$f":"IFERROR(Позиции[[#This Row],[КОЛИЧЕСТВО]]*Позиции[[#This Row],[ЦЕНА ЗА ЕДИНИЦУ]], \"\")","v":{"v":0,"d":"0.00 ₽"}}]
[null,"ГОРОД, РЕГИОН, ПОЧТОВЫЙ ИНДЕКС",{"$nulls":4},{"$f":"IFERROR(Позиции[[#This Row],[КОЛИЧЕСТВО]]*Позиции[[#This Row],[ЦЕНА ЗА ЕДИНИЦУ]], \"\")","v":{"v":0,"d":"0.00 ₽"}}]
[null,"Введите город, регион и почтовый индекс клиента в этой ячейке.",{"$nulls":4},{"$f":"IFERROR(Позиции[[#This Row],[КОЛИЧЕСТВО]]*Позиции[[#This Row],[ЦЕНА ЗА ЕДИНИЦУ]], \"\")","v":{"v":0,"d":"0.00 ₽"}}]
[null,"ТЕЛЕФОН",{"$nulls":4},{"$f":"IFERROR(Позиции[[#This Row],[КОЛИЧЕСТВО]]*Позиции[[#This Row],[ЦЕНА ЗА ЕДИНИЦУ]], \"\")","v":{"v":0,"d":"0.00 ₽"}}]
[null,"Введите номер телефона клиента в этой ячейке.",{"$nulls":4},{"$f":"IFERROR(Позиции[[#This Row],[КОЛИЧЕСТВО]]*Позиции[[#This Row],[ЦЕНА ЗА ЕДИНИЦУ]], \"\")","v":{"v":0,"d":"0.00 ₽"}}]
[null,"ЭЛЕКТРОННАЯ ПОЧТА",{"$nulls":4},{"$f":"IFERROR(Позиции[[#This Row],[КОЛИЧЕСТВО]]*Позиции[[#This Row],[ЦЕНА ЗА ЕДИНИЦУ]], \"\")","v":{"v":0,"d":"0.00 ₽"}}]
[null,"Введите адрес электронной почты клиента в этой ячейке.",{"$nulls":4},{"$f":"IFERROR(Позиции[[#This Row],[КОЛИЧЕСТВО]]*Позиции[[#This Row],[ЦЕНА ЗА ЕДИНИЦУ]], \"\")","v":{"v":0,"d":"0.00 ₽"}}]
[null,"ПРОДАВЕЦ",{"$nulls":4},{"$f":"IFERROR(Позиции[[#This Row],[КОЛИЧЕСТВО]]*Позиции[[#This Row],[ЦЕНА ЗА ЕДИНИЦУ]], \"\")","v":{"v":0,"d":"0.00 ₽"}}]
[null,"Введите имя продавца в этой ячейке.",{"$nulls":4},{"$f":"IFERROR(Позиции[[#This Row],[КОЛИЧЕСТВО]]*Позиции[[#This Row],[ЦЕНА ЗА ЕДИНИЦУ]], \"\")","v":{"v":0,"d":"0.00 ₽"}}]
[null,"ПРОЕКТ",{"$nulls":4},{"$f":"IFERROR(Позиции[[#This Row],[КОЛИЧЕСТВО]]*Позиции[[#This Row],[ЦЕНА ЗА ЕДИНИЦУ]], \"\")","v":{"v":0,"d":"0.00 ₽"}}]
[null,"Введите название проекта в этой ячейке.",{"$nulls":4},{"$f":"IFERROR(Позиции[[#This Row],[КОЛИЧЕСТВО]]*Позиции[[#This Row],[ЦЕНА ЗА ЕДИНИЦУ]], \"\")","v":{"v":0,"d":"0.00 ₽"}}]
[null,"КЕМ ПОДГОТОВЛЕНО",{"$nulls":4},{"$f":"IFERROR(Позиции[[#This Row],[КОЛИЧЕСТВО]]*Позиции[[#This Row],[ЦЕНА ЗА ЕДИНИЦУ]], \"\")","v":{"v":0,"d":"0.00 ₽"}}]
[null,"Введите имя лица, подготовившего предложение, в этой ячейке.",{"$nulls":4},{"$f":"IFERROR(Позиции[[#This Row],[КОЛИЧЕСТВО]]*Позиции[[#This Row],[ЦЕНА ЗА ЕДИНИЦУ]], \"\")","v":{"v":0,"d":"0.00 ₽"}}]
[null,"ВНИМАНИЮ",{"$nulls":4},{"$f":"IFERROR(Позиции[[#This Row],[КОЛИЧЕСТВО]]*Позиции[[#This Row],[ЦЕНА ЗА ЕДИНИЦУ]], \"\")","v":{"v":0,"d":"0.00 ₽"}}]
[null,"Введите имя лица, которому адресовано предложение, в этой ячейке.",{"$nulls":4},{"$f":"IFERROR(Позиции[[#This Row],[КОЛИЧЕСТВО]]*Позиции[[#This Row],[ЦЕНА ЗА ЕДИНИЦУ]], \"\")","v":{"v":0,"d":"0.00 ₽"}}]
[null,"УСЛОВИЯ ОПЛАТЫ",{"$nulls":4},{"$f":"IFERROR(Позиции[[#This Row],[КОЛИЧЕСТВО]]*Позиции[[#This Row],[ЦЕНА ЗА ЕДИНИЦУ]], \"\")","v":{"v":0,"d":"0.00 ₽"}}]
[null,"В течение 30 дней",{"$nulls":4},{"$f":"IFERROR(Позиции[[#This Row],[КОЛИЧЕСТВО]]*Позиции[[#This Row],[ЦЕНА ЗА ЕДИНИЦУ]], \"\")","v":{"v":0,"d":"0.00 ₽"}}]
[null,"СРОК ОПЛАТЫ",{"$nulls":4},{"$f":"IFERROR(Позиции[[#This Row],[КОЛИЧЕСТВО]]*Позиции[[#This Row],[ЦЕНА ЗА ЕДИНИЦУ]], \"\")","v":{"v":0,"d":"0.00 ₽"}}]
[null,{"$f":"TODAY()+30","v":"2018-12-19"},{"$nulls":4},{"$f":"IFERROR(Позиции[[#This Row],[КОЛИЧЕСТВО]]*Позиции[[#This Row],[ЦЕНА ЗА ЕДИНИЦУ]], \"\")","v":{"v":0,"d":"0.00 ₽"}}]
[{"$nulls":5},"ПРОМЕЖУТОЧНЫЙ ИТОГ",{"$f":"SUBTOTAL(109,Позиции[СУММА])","v":{"v":3189.5,"d":"3,189.50 ₽"}}]
[{"$nulls":3},"ЭТО ПРЕДЛОЖЕНИЕ ВКЛЮЧАЕТ В СЕБЯ УКАЗАННЫЕ УСЛОВИЯ:",null,"СТАВКА НАЛОГА ",{"v":0.0775,"d":"7.75%"}]
[{"$nulls":3},"Введите здесь условия.",null,"НАЛОГ С ПРОДАЖ ",{"$f":"IFERROR(ПромежуточныйИтог*СтавкаНалога, \"\")","v":{"v":247.18625,"d":"247.19 ₽"}}]
[{"$nulls":5},"ДРУГОЕ "]
[{"$nulls":5},"ИТОГО ",{"$f":"IFERROR(ПромежуточныйИтог+G33+Другое, \"\")","v":{"v":3436.68625,"d":"3,436.69 ₽"}}]
[]
[{"$nulls":3},"Поставьте подпись, чтобы принять ценовое предложение:"]
[]
[{"$nulls":3},"Уполномоченный представитель",null,null,"Дата"]